[Event "Mentese ELO February 2022"]
[Site "Mentese"]
[Date "2022.02.20"]
[Round "4.4"]
[White "Kolat, Ata"]
[Black "Koseoglu, Osman Ogul"]
[Result "0-1"]
[ECO "B11"]
[WhiteElo "1534"]
[BlackElo "1713"]
[Annotator "NA"]
[PlyCount "152"]
[EventDate "2022.02.19"]
[EventCountry "TUR"]
[SourceTitle "playchess.com"]
[Source "ChessBase"]
[SourceQuality "1"]
[TimeControl "3600+30"]

1. e4 {[%emt 0:01:00]} c6 {[%emt 0:01:00]} 2. Nc3 {[%emt 0:00:00]} d5 {[%emt 0:00:30]} 3. Nf3 {[%emt 0:00:00]} Bg4 {[%emt 0:00:30]} 4. h3 {[%emt 0:00:30]} Bxf3 {[%emt 0:00:30]} 5. Qxf3 {[%emt 0:00:30]} e6 {[%emt 0:00:30]} 6. Be2 {[%emt 0:00:30]} Bc5 {[%emt 0:01:30]} 7. O-O {[%emt 0:02:30]} Ne7 {[%emt 0:04:30]} 8. Rd1 {[%emt 0:00:30]} d4 {[%emt 0:00:30]} 9. Nb1 {[%emt 0:05:30]} Bd6 {[%emt 0:04:30]} 10. c3 {[%emt 0:05:30]} c5 {[%emt 0:02:30]} 11. Na3 {[%emt 0:05:30]} Nbc6 {[%emt 0:01:30]} 12. Nc4 {[%emt 0:00:30]} Bc7 {[%emt 0:00:30]} 13. a4 {[%emt 0:04:30]} O-O {[%emt 0:04:30]} 14. d3 {[%emt 0:03:30]} a6 {[%emt 0:07:30]} 15. Bf4 {[%emt 0:02:30]} e5 {[%emt 0:07:30]} 16. Bh2 {[%emt 0:04:30]} b5 {[%emt 0:04:30]} 17. axb5 {[%emt 0:04:30]} axb5 {[%emt 0:00:00]} 18. Nd2 {[%emt 0:02:30]} Qd7 {[%emt 0:03:00]} 19. c4 {[%emt 0:01:30]} Na5 {[%emt 0:02:30]} 20. Qg4 {[%emt 0:03:30]} Qxg4 {[%emt 0:00:30]} 21. Bxg4 {[%emt 0:00:30]} bxc4 {[%emt 0:00:30]} 22. Nxc4 {[%emt 0:01:33]} Nxc4 {[%emt 0:00:00]} 23. dxc4 {[%emt 0:00:27]} Nc6 {[%emt 0:00:00]} 24. Kf1 {[%emt 0:02:15]} Rfb8 {[%emt 0:01:30]} 25. Bd7 {[%emt 0:02:47]} Nb4 {[%emt 0:01:30]} 26. Bb5 {[%emt 0:02:51]} f6 {[%emt 0:01:30]} 27. b3 {[%emt 0:02:41]} Kf7 {[%emt 0:00:30]} 28. Ra4 {[%emt 0:01:36]} Ra5 {[%emt 0:01:44]} 29. Rb1 {[%emt 0:02:14]} Rba8 {[%emt 0:00:28]} 30. Ke2 {[%emt 0:00:54]} Ke6 {[%emt 0:00:02]} 31. f3 {[%emt 0:00:25]} g5 {[%emt 0:00:50]} 32. Bg3 {[%emt 0:00:55]} Nc2 {[%emt 0:00:36]} 33. Be1 {[%emt 0:02:35]} R5a7 {[%emt 0:02:37]} 34. Bc6 {[%emt 0:01:01]} Rxa4 {[%emt 0:02:00]} 35. Bxa4 {[%emt 0:01:06]} Ba5 {[%emt 0:01:04]} 36. Bxa5 {[%emt 0:00:49]} Rxa5 {[%emt 0:00:02]} 37. Kd3 {[%emt 0:00:34]} Nb4+ {[%emt 0:01:08]} 38. Kd2 {[%emt 0:00:30]} h5 {[%emt 0:00:30]} 39. Rh1 {[%emt 0:00:30]} h4 {[%emt 0:00:30]} 40. Ra1 {[%emt 0:00:30]} Kd6 {[%emt 0:00:00]} 41. Ra3 {[%emt 0:02:00]} Na6 {[%emt 0:00:30]} 42. Ra1 {[%emt 0:00:48]} Nc7 {[%emt 0:00:42]} 43. Kc2 {[%emt 0:00:35]} Ne6 {[%emt 0:00:05]} 44. Rd1 {[%emt 0:00:16]} Nf4 {[%emt 0:00:13]} 45. Rd2 {[%emt 0:00:07]} Ra7 {[%emt 0:00:13]} 46. Kb2 {[%emt 0:00:47]} Kc7 {[%emt 0:00:13]} 47. Bb5 {[%emt 0:01:16]} Kb6 {[%emt 0:00:09]} 48. Be8 {[%emt 0:00:31]} Ka5 {[%emt 0:00:20]} 49. Ka3 {[%emt 0:00:56]} Ne6 {[%emt 0:01:31]} 50. Bc6 {[%emt 0:00:27]} Nc7 {[%emt 0:00:15]} 51. Ba4 {[%emt 0:00:46]} Na6 {[%emt 0:00:14]} 52. Bb5 {[%emt 0:00:37]} Nb4 {[%emt 0:00:02]} 53. Ba4 {[%emt 0:00:11]} Ra8 {[%emt 0:00:12]} 54. Kb2 {[%emt 0:00:42]} Rd8 {[%emt 0:00:02]} 55. Bb5 {[%emt 0:00:32]} Kb6 {[%emt 0:02:18]} 56. Ba4 {[%emt 0:00:54]} Ra8 {[%emt 0:00:02]} 57. Rd1 {[%emt 0:00:08]} Ra7 {[%emt 0:00:57]} 58. Rd2 {[%emt 0:00:29]} Na6 {[%emt 0:02:20]} 59. Rd1 {[%emt 0:00:57]} Nc7 {[%emt 0:00:29]} 60. Rd2 {[%emt 0:00:37]} Ne6 {[%emt 0:00:23]} 61. Bb5 {[%emt 0:00:32]} Ra8 {[%emt 0:00:29]} 62. Bd7 {[%emt 0:00:15]} Nf4 {[%emt 0:00:06]} 63. Bf5 {[%emt 0:00:44]} Rd8 {[%emt 0:00:34]} 64. Bg4 {[%emt 0:00:24]} Ka5 {[%emt 0:00:04]} 65. Ka3 {[%emt 0:00:27]} d3 {[%emt 0:00:16]} 66. Kb2 {[%emt 0:00:46]} Kb4 {[%emt 0:00:01]} 67. Bf5 {[%emt 0:00:25]} Ra8 {[%emt 0:00:17]} 68. Bd7 {[%emt 0:00:13]} Ra3 {[%emt 0:00:27]} 69. Ba4 {[%emt 0:00:11]} Ne2 {[%emt 0:01:40]} 70. Rxd3 {[%emt 0:00:20]} Ra2+ {[%emt 0:00:01]} 71. Kb1 {[%emt 0:00:43]} Ka3 {[%emt 0:01:30]} 72. Re3 {[%emt 0:00:55]} Rb2+ {[%emt 0:00:01]} 73. Ka1 {[%emt 0:00:12]} Rd2 {[%emt 0:00:46]} 74. Kb1 {[%emt 0:00:26]} Nd4 {[%emt 0:00:10]} 75. Kc1 {[%emt 0:00:40]} Rxg2 {[%emt 0:00:13]} 76. Bd7 {[%emt 0:00:40]} Nxb3+ {[%emt 0:00:20]} 0-1

[Event "Mentese ELO February 2022"]
[Site "Mentese"]
[Date "2022.02.20"]
[Round "4.5"]
[White "Erdem, Berkin"]
[Black "Ozturk, Halil Ibrahim"]
[Result "1-0"]
[ECO "E16"]
[WhiteElo "1616"]
[BlackElo "1541"]
[Annotator "NA RC"]
[PlyCount "125"]
[EventDate "2022.02.19"]
[EventCountry "TUR"]
[SourceTitle "playchess.com"]
[Source "ChessBase"]
[SourceQuality "1"]
[TimeControl "3600+30"]

1. d4 {[%emt 0:02:00]} d5 {[%emt 0:01:00]} 2. c4 {[%emt 0:00:30]} e6 {[%emt 0:00:00]} 3. Nf3 {[%emt 0:00:00]} Nf6 {[%emt 0:00:00]} 4. g3 {[%emt 0:00:00]} Bb4+ {[%emt 0:00:30]} 5. Bd2 {[%emt 0:00:30]} Bxd2+ {[%emt 0:00:30]} 6. Nbxd2 {[%emt 0:00:30]} b6 {[%emt 0:00:30]} 7. Bg2 {[%emt 0:00:30]} Bb7 {[%emt 0:00:30]} 8. O-O {[%emt 0:00:30]} O-O {[%emt 0:00:00]} 9. Rc1 {[%emt 0:06:30]} Nbd7 {[%emt 0:01:00]} 10. Qc2 {[%emt 0:00:30]} Rc8 {[%emt 0:00:00]} 11. c5 {[%emt 0:03:30]} bxc5 {[%emt 0:00:00]} 12. dxc5 {[%emt 0:00:30]} c6 {[%emt 0:00:30]} 13. b4 {[%emt 0:00:00]} Qe7 {[%emt 0:04:30]} 14. e4 {[%emt 0:00:00]} e5 {[%emt 0:01:30]} 15. Rfe1 {[%emt 0:02:30]} d4 {[%emt 0:01:30]} 16. Nc4 {[%emt 0:00:30]} Rb8 {[%emt 0:02:30]} 17. a3 {[%emt 0:02:30]} Rfd8 {[%emt 0:01:30]} 18. Qa4 {[%emt 0:05:30]} Ne8 {[%emt 0:11:30]} 19. Qxa7 {[%emt 0:02:30]} Nc7 {[%emt 0:01:30]} 20. Qa4 {[%emt 0:00:30]} Nb5 {[%emt 0:00:30]} 21. Bh3 {[%emt 0:01:30]} f6 {[%emt 0:04:30]} 22. Nfd2 {[%emt 0:00:30]} Nf8 {[%emt 0:08:30]} 23. Qb3 {[%emt 0:00:30]} Kh8 {[%emt 0:01:30]} 24. a4 {[%emt 0:00:30]} Nc3 {[%emt 0:00:30]} 25. Nd6 {[%emt 0:00:30]} Rxd6 {[%emt 0:02:30]} 26. cxd6 {[%emt 0:00:30]} Qxd6 {[%emt 0:00:30]} 27. Nb1 {[%emt 0:01:30]} Nxb1 {[%emt 0:03:30]} 28. Rxb1 {[%emt 0:05:30]} Ba6 {[%emt 0:01:30]} 29. Bf1 {[%emt 0:01:30]} Bxf1 {[%emt 0:00:30]} 30. Kxf1 {[%emt 0:00:30]} Nd7 {[%emt 0:00:00]} 31. Qc4 {[%emt 0:00:30]} h6 {[%emt 0:01:00]} 32. Rec1 {[%emt 0:00:30]} Nb6 {[%emt 0:02:30]} 33. Qxc6 {[%emt 0:00:30]} Qxc6 {[%emt 0:00:30]} 34. Rxc6 {[%emt 0:00:00]} Nxa4 {[%emt 0:00:00]} 35. f3 {[%emt 0:01:00]} Rd8 {[%emt 0:01:00]} 36. Ke1 {[%emt 0:01:30]} Nc3 {[%emt 0:00:30]} 37. Rb3 {[%emt 0:00:30]} Ra8 {[%emt 0:00:30]} 38. b5 {[%emt 0:00:30]} Ra1+ {[%emt 0:01:03]} 39. Kd2 {[%emt 0:00:30]} Ra2+ {[%emt 0:00:04]} 40. Kd3 {[%emt 0:00:30]} Nxb5 {[%emt 0:00:49]} 41. Rxb5 {[%emt 0:00:30]} Rxh2 {[%emt 0:00:04]} 42. Rc2 {[%emt 0:00:30]} Rh1 {[%emt 0:00:47]} 43. Rb7 {[%emt 0:01:30]} Rf1 {[%emt 0:00:33]} 44. Ke2 {[%emt 0:00:30]} Rg1 {[%emt 0:02:02]} 45. Kf2 {[%emt 0:00:30]} Rh1 {[%emt 0:00:30]} 46. Rcc7 {[%emt 0:00:00]} Rh2+ {[%emt 0:00:45]} 47. Kg1 {[%emt 0:00:00]} Ra2 {[%emt 0:00:32]} 48. Rxg7 {[%emt 0:00:30]} d3 {[%emt 0:01:12]} 49. Rgd7 {[%emt 0:00:30]} Ra1+ {[%emt 0:00:31]} 50. Kf2 {[%emt 0:00:00]} Ra2+ {[%emt 0:00:07]} 51. Ke3 {[%emt 0:00:00]} Ra8 {[%emt 0:00:24]} 52. Kxd3 {[%emt 0:00:00]} Rc8 {[%emt 0:00:09]} 53. Rh7+ {[%emt 0:00:00]} Kg8 {[%emt 0:00:09]} 54. Rxh6 {[%emt 0:00:30]} Rd8+ {[%emt 0:00:23]} 55. Ke3 {[%emt 0:00:30]} Rc8 {[%emt 0:00:12]} 56. Rxf6 {[%emt 0:00:00]} Rc3+ {[%emt 0:00:05]} 57. Kf2 {[%emt 0:00:00]} Rc2+ {[%emt 0:00:08]} 58. Kg1 {[%emt 0:00:00]} Rc1+ {[%emt 0:00:10]} 59. Kg2 {[%emt 0:00:00]} Rc2+ {[%emt 0:00:21]} 60. Kh3 {[%emt 0:00:30]} Rc3 {[%emt 0:00:30]} 61. Kg4 {[%emt 0:00:00]} Rc1 {[%emt 0:00:30]} 62. Re6 {[%emt 0:00:00]} Rc5 {[%emt 0:00:00]} 63. Re8# 1-0

[Event "Mentese ELO February 2022"]
[Site "Mentese"]
[Date "2022.02.20"]
[Round "5.1"]
[White "Seker, Bilgesu"]
[Black "Turgut, Hakan"]
[Result "0-1"]
[ECO "B28"]
[WhiteElo "1681"]
[BlackElo "1805"]
[Annotator "NA"]
[PlyCount "46"]
[EventDate "2022.02.19"]
[EventCountry "TUR"]
[SourceTitle "playchess.com"]
[Source "ChessBase"]
[SourceQuality "1"]
[TimeControl "3600+30"]

1. e4 {[%emt 0:01:00]} c5 {[%emt 0:03:00]} 2. Nf3 {[%emt 0:00:00]} a6 {[%emt 0:01:30]} 3. c4 {[%emt 0:00:00]} g6 {[%emt 0:00:30]} 4. d4 {[%emt 0:01:30]} Bg7 {[%emt 0:00:30]} 5. dxc5 {[%emt 0:05:30]} Qa5+ {[%emt 0:04:30]} 6. Nc3 {[%emt 0:02:30]} Nf6 {[%emt 0:02:30]} ({Black should play} 6... Bxc3+ $14 7. bxc3 Nf6) 7. Bd3 {[%emt 0:02:30]} Qxc5 {[%emt 0:00:30]} 8. Be3 {[%emt 0:00:30]} Qa5 $1 {[%emt 0:02:30]} 9. O-O {[%emt 0:00:30]} d6 {[%emt 0:02:30]} 10. h3 {[%emt 0:10:30]} O-O {[%emt 0:00:30]} 11. Rc1 $14 {[%emt 0:00:30]} b5 {[%emt 0:08:30]} 12. cxb5 {[%emt 0:04:30]} axb5 {[%emt 0:01:30]} 13. Nxb5 {[%emt 0:04:30]} Qxa2 {[%emt 0:01:30]} 14. Qe2 {[%emt 0:07:30]} Nbd7 {[%emt 0:04:30]} 15. Na3 {[%emt 0:02:30]} Nxe4 {[%emt 0:06:30]} 16. Nd4 {[%emt 0:05:40]} Ndc5 {[%emt 0:00:30]} 17. Ra1 {[%emt 0:00:30]} Qd5 {[%emt 0:00:30]} 18. Bc4 {[%emt 0:00:30]} Qe5 {[%emt 0:08:08]} 19. Nab5 {[%emt 0:12:48]} Bb7 {[%emt 0:00:49]} 20. Nc7 {[%emt 0:00:50]} Rac8 {[%emt 0:00:53]} 21. Ncb5 {[%emt 0:01:09]} d5 {[%emt 0:02:45]} 22. Ba2 {[%emt 0:01:12]} Qb8 {[%emt 0:00:37]} 23. Nf3 {[%emt 0:03:54]} Ba6 {[%emt 0:00:48]} 0-1

[Event "Mentese ELO February 2022"]
[Site "Mentese"]
[Date "2022.02.20"]
[Round "5.2"]
[White "Hekimoglu, Mihriban"]
[Black "Taskin, Arda"]
[Result "1/2-1/2"]
[ECO "B92"]
[WhiteElo "1479"]
[BlackElo "1652"]
[Annotator "NA RC"]
[PlyCount "168"]
[EventDate "2022.02.19"]
[EventCountry "TUR"]
[SourceTitle "playchess.com"]
[Source "ChessBase"]
[SourceQuality "1"]
[TimeControl "3600+30"]

1. e4 {[%emt 0:01:00]} c5 {[%emt 0:02:00]} 2. Nf3 {[%emt 0:00:00]} d6 {[%emt 0:00:30]} 3. d4 {[%emt 0:00:00]} cxd4 {[%emt 0:00:00]} 4. Nxd4 {[%emt 0:00:00]} Nf6 {[%emt 0:00:00]} 5. Nc3 {[%emt 0:00:00]} a6 {[%emt 0:00:30]} 6. Be2 {[%emt 0:00:30]} e5 {[%emt 0:00:00]} 7. Nb3 {[%emt 0:00:30]} Be6 {[%emt 0:01:00]} 8. Bg5 {[%emt 0:07:30]} Nbd7 {[%emt 0:00:30]} 9. O-O {[%emt 0:00:30]} Be7 {[%emt 0:00:30]} 10. Qd2 {[%emt 0:02:30]} b5 {[%emt 0:02:30]} 11. Bxf6 {[%emt 0:07:30]} Nxf6 {[%emt 0:00:30]} 12. Bf3 {[%emt 0:00:30]} O-O {[%emt 0:00:30]} 13. Rad1 {[%emt 0:05:30]} Qc7 {[%emt 0:01:30]} 14. g3 {[%emt 0:02:30]} Rac8 {[%emt 0:01:30]} 15. a3 {[%emt 0:01:30]} Rfd8 {[%emt 0:03:30]} 16. Bg2 {[%emt 0:03:30]} a5 {[%emt 0:06:30]} 17. Nxb5 {[%emt 0:01:30]} Qxc2 {[%emt 0:00:30]} 18. Nxa5 {[%emt 0:02:30]} Qa4 {[%emt 0:04:30]} 19. Qb4 {[%emt 0:01:30]} Qxb4 {[%emt 0:01:30]} 20. axb4 {[%emt 0:00:30]} Bc4 {[%emt 0:00:30]} 21. Nxc4 {[%emt 0:00:00]} Rxc4 {[%emt 0:00:00]} 22. Rd2 {[%emt 0:14:32]} Rxb4 {[%emt 0:03:00]} 23. Nc3 {[%emt 0:00:27]} Rdb8 {[%emt 0:02:30]} 24. Rb1 {[%emt 0:00:28]} Kf8 {[%emt 0:01:30]} 25. f4 {[%emt 0:00:30]} Rc4 {[%emt 0:00:30]} 26. Rc1 {[%emt 0:00:30]} Rc6 {[%emt 0:00:30]} 27. Rdc2 {[%emt 0:00:30]} Rbc8 {[%emt 0:15:30]} 28. Bf3 {[%emt 0:06:30]} Bd8 {[%emt 0:00:30]} 29. Kf2 {[%emt 0:00:54]} Bb6+ {[%emt 0:00:30]} 30. Ke2 {[%emt 0:00:06]} Bd4 {[%emt 0:01:30]} 31. Kd2 {[%emt 0:00:16]} Rb8 {[%emt 0:05:50]} 32. Nd1 {[%emt 0:04:21]} Rxc2+ {[%emt 0:00:34]} 33. Rxc2 {[%emt 0:00:05]} Nd7 {[%emt 0:00:04]} 34. Nc3 {[%emt 0:01:01]} Nc5 {[%emt 0:01:57]} 35. fxe5 {[%emt 0:01:46]} Bxe5 {[%emt 0:01:02]} 36. Ke3 {[%emt 0:01:11]} Nb3 {[%emt 0:02:51]} 37. Ne2 {[%emt 0:02:10]} Na5 {[%emt 0:02:19]} 38. Nd4 {[%emt 0:01:50]} g6 {[%emt 0:00:28]} 39. Be2 {[%emt 0:00:19]} Rb4 {[%emt 0:03:11]} 40. Nb5 {[%emt 0:00:07]} Nb7 {[%emt 0:01:53]} 41. Nc3 {[%emt 0:02:14]} Nc5 {[%emt 0:00:48]} 42. Bf3 {[%emt 0:00:41]} Rb3 {[%emt 0:01:45]} 43. Kd2 {[%emt 0:00:30]} Bd4 {[%emt 0:00:43]} 44. Bg2 {[%emt 0:00:31]} Rb8 {[%emt 0:01:15]} 45. Nd1 {[%emt 0:00:42]} Kg7 {[%emt 0:00:52]} 46. Kc1 {[%emt 0:00:32]} Nb3+ {[%emt 0:01:25]} 47. Kb1 {[%emt 0:00:06]} Ra8 {[%emt 0:00:33]} 48. Re2 {[%emt 0:00:15]} Be5 {[%emt 0:00:12]} 49. Re1 {[%emt 0:00:50]} Ra1+ {[%emt 0:00:22]} 50. Kc2 {[%emt 0:00:04]} Nd4+ {[%emt 0:00:06]} 51. Kd2 {[%emt 0:00:24]} Rb1 {[%emt 0:00:47]} 52. Rf1 {[%emt 0:01:11]} Ra1 {[%emt 0:00:09]} 53. Ne3 {[%emt 0:00:34]} Ra4 {[%emt 0:00:45]} 54. Nd5 {[%emt 0:00:56]} Rc4 {[%emt 0:00:56]} 55. Ne3 {[%emt 0:00:13]} Nb3+ {[%emt 0:01:10]} 56. Kd3 {[%emt 0:00:31]} Rd4+ {[%emt 0:00:26]} 57. Kc2 {[%emt 0:00:05]} Nc5 {[%emt 0:00:12]} 58. Ng4 {[%emt 0:01:09]} Rc4+ {[%emt 0:00:44]} 59. Kb1 {[%emt 0:00:06]} Nb3 {[%emt 0:01:09]} 60. Rd1 {[%emt 0:00:31]} h5 {[%emt 0:00:43]} 61. Nxe5 {[%emt 0:00:17]} dxe5 {[%emt 0:00:08]} 62. Rd3 {[%emt 0:01:17]} Rc1+ {[%emt 0:00:20]} 63. Ka2 {[%emt 0:00:04]} Nd4 {[%emt 0:00:18]} 64. Rd2 {[%emt 0:00:45]} Kf6 {[%emt 0:00:08]} 65. b4 {[%emt 0:00:15]} Ke6 {[%emt 0:00:19]} 66. Rb2 {[%emt 0:00:39]} Kd6 {[%emt 0:00:42]} 67. Rb1 {[%emt 0:00:55]} Rc8 {[%emt 0:00:40]} 68. Bf1 {[%emt 0:00:25]} Rb8 {[%emt 0:00:32]} 69. Bc4 {[%emt 0:00:07]} f5 {[%emt 0:00:32]} 70. Bd3 {[%emt 0:00:05]} Ke6 {[%emt 0:01:09]} 71. Ka3 {[%emt 0:00:24]} Ra8+ {[%emt 0:00:29]} 72. Kb2 {[%emt 0:00:02]} Ra4 {[%emt 0:00:30]} 73. Kc3 {[%emt 0:00:35]} Ra3+ {[%emt 0:00:20]} 74. Kc4 {[%emt 0:00:01]} Kd6 {[%emt 0:00:38]} 75. b5 {[%emt 0:01:05]} Ra4+ {[%emt 0:00:28]} 76. Rb4 {[%emt 0:00:02]} Ra1 {[%emt 0:00:34]} 77. Rb1 {[%emt 0:01:01]} Ra8 {[%emt 0:00:17]} 78. Kb4 {[%emt 0:00:41]} Rc8 {[%emt 0:00:53]} 79. Ra1 {[%emt 0:00:14]} f4 {[%emt 0:00:44]} 80. Ra6+ {[%emt 0:00:27]} Ke7 {[%emt 0:00:15]} 81. gxf4 {[%emt 0:00:22]} exf4 {[%emt 0:00:09]} 82. Rxg6 {[%emt 0:00:05]} f3 {[%emt 0:00:22]} 83. Rg1 {[%emt 0:00:40]} Kf6 {[%emt 0:00:36]} 84. b6 {[%emt 0:00:47]} Rc6 {[%emt 0:00:34]} 1/2-1/2

[Event "Mentese ELO February 2022"]
[Site "Mentese"]
[Date "2022.02.20"]
[Round "5.3"]
[White "Kamisli, Yigit"]
[Black "Inci, Okan"]
[Result "0-1"]
[ECO "D40"]
[WhiteElo "1427"]
[BlackElo "1703"]
[Annotator "NA RC"]
[PlyCount "81"]
[EventDate "2022.02.19"]
[EventCountry "TUR"]
[SourceTitle "playchess.com"]
[Source "ChessBase"]
[SourceQuality "1"]
[TimeControl "3600+30"]

1. d4 {[%emt 0:01:00]} Nf6 {[%emt 0:01:00]} 2. Nf3 {[%emt 0:00:30]} e6 {[%emt 0:03:30]} 3. c4 {[%emt 0:00:30]} d5 {[%emt 0:00:30]} 4. e3 {[%emt 0:04:30]} a6 {[%emt 0:03:30]} 5. a4 {[%emt 0:03:30]} c5 {[%emt 0:00:30]} 6. Nc3 {[%emt 0:04:30]} Nc6 {[%emt 0:03:30]} 7. Be2 {[%emt 0:04:30]} cxd4 {[%emt 0:03:30]} 8. exd4 {[%emt 0:02:30]} Be7 {[%emt 0:01:30]} 9. O-O {[%emt 0:04:30]} O-O {[%emt 0:00:30]} 10. Be3 {[%emt 0:01:30]} dxc4 {[%emt 0:02:30]} 11. Bxc4 {[%emt 0:00:30]} Nb4 {[%emt 0:00:30]} 12. Rc1 {[%emt 0:05:30]} b6 {[%emt 0:03:30]} 13. Qe2 {[%emt 0:03:30]} Bb7 {[%emt 0:01:30]} 14. Ne5 {[%emt 0:02:30]} Nfd5 {[%emt 0:03:30]} 15. Rfe1 {[%emt 0:06:30]} Bg5 {[%emt 0:07:30]} 16. Bxg5 {[%emt 0:08:57]} Qxg5 {[%emt 0:00:00]} 17. Nxf7 {[%emt 0:02:36]} Rxf7 {[%emt 0:11:00]} 18. Qxe6 {[%emt 0:00:30]} Raf8 {[%emt 0:00:30]} 19. Ne4 {[%emt 0:00:30]} Qg6 {[%emt 0:00:30]} 20. Qxg6 {[%emt 0:00:30]} hxg6 {[%emt 0:00:30]} 21. Nd6 {[%emt 0:07:16]} Rd7 {[%emt 0:11:19]} 22. Nxb7 {[%emt 0:00:27]} Rxb7 {[%emt 0:00:00]} 23. Re6 {[%emt 0:01:48]} Kh7 {[%emt 0:01:37]} 24. Rce1 {[%emt 0:03:06]} Rf4 {[%emt 0:03:57]} 25. Rd1 {[%emt 0:00:47]} Re7 {[%emt 0:01:36]} 26. Bxd5 {[%emt 0:00:32]} Nxd5 {[%emt 0:00:04]} 27. Rxe7 {[%emt 0:00:30]} Nxe7 {[%emt 0:00:01]} 28. f3 {[%emt 0:00:19]} Nd5 {[%emt 0:00:07]} 29. Kf2 {[%emt 0:00:15]} Rf7 {[%emt 0:00:14]} 30. g3 {[%emt 0:00:33]} Rc7 {[%emt 0:00:21]} 31. Rd2 {[%emt 0:00:23]} Kg8 {[%emt 0:00:38]} 32. f4 {[%emt 0:00:35]} Kf7 {[%emt 0:00:16]} 33. Kf3 {[%emt 0:00:46]} Rc4 {[%emt 0:00:54]} 34. a5 {[%emt 0:00:38]} b5 {[%emt 0:00:37]} 35. h3 {[%emt 0:00:30]} Nf6 {[%emt 0:01:33]} 36. g4 {[%emt 0:00:23]} Ra4 {[%emt 0:00:54]} 37. g5 {[%emt 0:00:27]} Nd5 {[%emt 0:00:15]} 38. Ke4 {[%emt 0:00:16]} Ne7 {[%emt 0:00:22]} 39. Ke5 {[%emt 0:00:46]} Nc6+ {[%emt 0:00:49]} 40. Kd5 {[%emt 0:00:30]} Nxa5 {[%emt 0:00:35]} 41. b3 0-1

[Event "Mentese ELO February 2022"]
[Site "Mentese"]
[Date "2022.02.20"]
[Round "5.4"]
[White "Koseoglu, Osman Ogul"]
[Black "Koc, Zeki"]
[Result "1/2-1/2"]
[ECO "A40"]
[WhiteElo "1713"]
[BlackElo "1394"]
[Annotator "NA"]
[PlyCount "107"]
[EventDate "2022.02.19"]
[EventCountry "TUR"]
[SourceTitle "playchess.com"]
[Source "ChessBase"]
[SourceQuality "1"]
[TimeControl "3600+30"]

1. d4 {[%emt 0:09:00]} g6 {[%emt 0:02:00]} 2. Nf3 {[%emt 0:00:30]} Bg7 {[%emt 0:00:00]} 3. g3 {[%emt 0:00:30]} c5 {[%emt 0:01:00]} 4. Bg2 {[%emt 0:00:30]} Qb6 {[%emt 0:00:30]} 5. dxc5 {[%emt 0:00:30]} Qxc5 {[%emt 0:00:30]} 6. O-O {[%emt 0:00:00]} Nc6 {[%emt 0:01:30]} 7. c3 {[%emt 0:05:00]} Nf6 {[%emt 0:03:30]} 8. Na3 {[%emt 0:03:30]} O-O {[%emt 0:03:30]} 9. Be3 {[%emt 0:03:30]} Qa5 {[%emt 0:00:30]} 10. Nc4 {[%emt 0:00:30]} Qd8 {[%emt 0:02:30]} 11. Nd4 {[%emt 0:04:30]} d5 {[%emt 0:01:30]} 12. Nxc6 {[%emt 0:00:30]} bxc6 {[%emt 0:00:30]} 13. Ne5 {[%emt 0:00:00]} Qc7 {[%emt 0:03:30]} 14. Bf4 {[%emt 0:01:00]} Qb6 {[%emt 0:00:30]} 15. Qb3 {[%emt 0:00:30]} Bb7 {[%emt 0:01:30]} 16. g4 {[%emt 0:01:30]} Rfd8 {[%emt 0:00:30]} 17. h4 {[%emt 0:04:30]} e6 {[%emt 0:01:30]} 18. Rad1 {[%emt 0:02:30]} Nd7 {[%emt 0:04:30]} 19. Nd3 {[%emt 0:07:30]} e5 {[%emt 0:01:30]} 20. Bg5 {[%emt 0:00:30]} f6 {[%emt 0:00:30]} 21. Be3 {[%emt 0:00:30]} Qc7 {[%emt 0:00:30]} 22. Nc5 {[%emt 0:00:30]} Nxc5 {[%emt 0:01:30]} 23. Bxc5 {[%emt 0:00:30]} Ba6 {[%emt 0:03:30]} 24. Rfe1 {[%emt 0:00:30]} Bc4 {[%emt 0:01:30]} 25. Qa3 {[%emt 0:00:30]} Qc8 {[%emt 0:02:30]} 26. b3 {[%emt 0:04:30]} Ba6 {[%emt 0:02:30]} 27. e4 {[%emt 0:00:30]} Bb7 {[%emt 0:01:30]} 28. Qb4 {[%emt 0:03:37]} a5 {[%emt 0:00:30]} 29. Qa4 {[%emt 0:02:14]} Qxg4 {[%emt 0:00:30]} 30. exd5 {[%emt 0:00:30]} Qxa4 {[%emt 0:00:30]} 31. bxa4 {[%emt 0:00:30]} cxd5 {[%emt 0:00:30]} 32. c4 {[%emt 0:00:30]} e4 {[%emt 0:00:30]} 33. cxd5 {[%emt 0:00:30]} Rxd5 {[%emt 0:00:30]} 34. Rxd5 {[%emt 0:00:30]} Bxd5 {[%emt 0:00:30]} 35. Bxe4 {[%emt 0:00:30]} Bxe4 {[%emt 0:00:30]} 36. Rxe4 {[%emt 0:00:30]} f5 {[%emt 0:00:30]} 37. Re7 {[%emt 0:00:30]} Bf8 {[%emt 0:00:30]} 38. Rc7 {[%emt 0:00:30]} Bxc5 {[%emt 0:00:30]} 39. Rxc5 {[%emt 0:00:30]} Kg7 {[%emt 0:00:30]} 40. h5 {[%emt 0:00:30]} Kh6 {[%emt 0:00:30]} 41. hxg6 {[%emt 0:00:30]} hxg6 {[%emt 0:00:30]} 42. Kg2 {[%emt 0:00:30]} Kg5 {[%emt 0:00:30]} 43. Kg3 {[%emt 0:00:30]} Ra6 {[%emt 0:00:30]} 44. f4+ {[%emt 0:00:30]} Kf6 {[%emt 0:00:30]} 45. Kh4 {[%emt 0:00:00]} g5+ {[%emt 0:09:30]} 46. fxg5+ {[%emt 0:00:00]} Kg6 {[%emt 0:00:30]} 47. Rb5 {[%emt 0:00:00]} Re6 {[%emt 0:00:30]} 48. Rxa5 {[%emt 0:00:00]} Re4+ {[%emt 0:00:30]} 49. Kg3 {[%emt 0:00:00]} Kxg5 {[%emt 0:00:30]} 50. Kf3 {[%emt 0:00:00]} Rb4 {[%emt 0:00:30]} 51. Ra8 {[%emt 0:00:00]} Rf4+ {[%emt 0:00:30]} 52. Kg3 {[%emt 0:00:00]} Rg4+ {[%emt 0:00:30]} 53. Kf3 {[%emt 0:00:00]} Rf4+ {[%emt 0:00:00]} 54. Kg3 {[%emt 0:00:09]} 1/2-1/2